bitfinex-derivatives/quotes_ETHF0:USTF0_20250828
["timestamp","ask_amount","ask_price","bid_price","bid_amount"]
[1756344391920,19.626,4504.3,4504.2,0.6053]
[1756344392718,19.626,4504.3,4504.2,0.2999]
[1756344393121,1.06511477,4504.4,4504.2,0.2023]
[1756344393317,3.2078,4504.5,4504.4,0.309]
[1756344393515,13.2458,4504.5,4504.4,1.0072]
[1756344393920,13.2458,4504.5,4504.4,1.7256]
[1756344394121,3.2078,4504.5,4504.4,1.7256]
[1756344394317,13.2838,4504.5,4504.4,1.7256]
[1756344396521,22.8558,4504.5,4504.4,1.7256]
[1756344397317,3.2078,4505.0,4504.4,2.79071477]
[1756344397520,6.6128,4505.0,4504.8,0.6801]
[1756344397717,6.6128,4505.0,4504.9,1.7256]
[1756344397910,3.2078,4505.0,4504.9,1.7256]
[1756344398719,8.971,4505.3,4504.9,0.6801]
[1756344399014,20.9618,4505.5,4505.4,0.6801]
[1756344399219,20.9618,4505.5,4505.4,1.7256]
[1756344399417,3.2078,4505.5,4505.4,1.7256]
[1756344401223,3.2078,4506.0,4505.9,1.7256]
[1756344401417,23.7408,4506.0,4505.9,1.7256]
[1756344401616,23.7408,4506.0,4505.9,1.2945]
[1756344403222,3.2078,4506.0,4505.9,1.7256]
[1756344403419,23.7398,4506.0,4505.9,1.7256]
[1756344403624,3.2078,4507.5,4507.0,0.309]
[1756344403824,20.558,4507.4,4507.1,1.0455]
[1756344404013,20.558,4507.4,4507.2,0.6144]
[1756344404218,20.558,4507.4,4507.3,0.6144]
[1756344404723,3.2078,4507.5,4507.4,0.309]
[1756344404914,23.7658,4507.5,4507.4,0.6144]
[1756344405120,23.7658,4507.5,4507.4,0.309]
[1756344405427,3.2078,4507.5,4507.4,0.309]
[1756344405627,23.7628,4507.5,4507.4,0.309]
[1756344406025,23.7628,4507.5,4506.5,0.1946]
[1756344406225,23.7628,4507.5,4506.6,1.2945]
[1756344407626,3.2078,4507.5,4506.9,0.309]
[1756344407827,20.549,4507.4,4507.3,1.2945]
[1756344408024,20.549,4507.4,4507.3,1.7256]
[1756344408229,20.549,4507.4,4507.3,1.2945]
[1756344408731,20.542,4507.4,4507.3,0.9855]
[1756344408932,20.542,4507.4,4507.3,1.2945]
[1756344409436,20.542,4507.4,4507.3,1.0072]
[1756344409727,3.2078,4507.5,4507.4,0.3054]
[1756344409929,3.2078,4507.5,4507.4,0.9855]
[1756344410126,35.1858,4508.0,4507.5,0.4311]
[1756344410328,20.544,4507.9,4507.8,1.7256]
[1756344411633,35.1858,4508.0,4507.8,0.6801]
[1756344411834,20.541,4507.9,4507.8,1.7256]
[1756344412437,55.7228,4508.0,4507.9,1.7256]
[1756344412631,55.7228,4508.0,4507.9,1.2945]
[1756344412934,55.7228,4508.0,4507.9,0.309]
[1756344413633,55.7158,4508.0,4507.9,0.6144]
[1756344413835,55.7158,4508.0,4507.9,0.809]
[1756344414536,55.7158,4508.0,4507.9,0.6144]
[1756344415425,35.1858,4508.0,4507.9,1.2945]
[1756344415630,55.7088,4508.0,4507.9,1.0072]
[1756344415934,55.7088,4508.0,4507.9,1.2945]
[1756344416134,55.7088,4508.0,4507.9,0.6144]
[1756344416336,55.7088,4508.0,4507.9,0.309]
[1756344416638,55.7088,4508.0,4507.5,41.1054]
[1756344416833,55.7088,4508.0,4507.7,0.309]
[1756344417331,55.7088,4508.0,4507.6,0.6801]
[1756344417332,35.1858,4508.0,4507.6,0.6801]
[1756344417538,20.522,4507.9,4507.8,0.309]
[1756344418137,35.1858,4508.0,4507.8,0.1946]
[1756344418338,35.1858,4508.0,4507.9,0.809]
[1756344418538,55.7078,4508.0,4507.9,0.809]
[1756344418730,55.7078,4508.0,4507.9,0.6144]
[1756344418930,55.7078,4508.0,4507.9,0.309]
[1756344420341,55.7078,4508.0,4507.8,0.309]
[1756344420637,35.1858,4508.0,4507.9,0.6144]
[1756344420837,55.7068,4508.0,4507.9,0.6144]
[1756344421036,55.7068,4508.0,4507.9,0.309]
[1756344421631,59.92863001,4508.0,4507.2,0.2938]
[1756344421838,3.2078,4507.4,4506.5,0.2826]
[1756344422040,3.2078,4506.9,4506.2,0.843]
[1756344422227,20.52,4506.8,4506.4,1.206]
[1756344422542,20.52,4506.8,4506.6,0.9492]
[1756344422727,20.52,4506.8,4506.7,0.9764]
[1756344423137,3.2078,4506.9,4506.8,1.6674]
[1756344423339,12.1078,4506.9,4506.8,1.6674]
[1756344423540,3.2078,4506.9,4506.8,1.6674]
[1756344423735,12.1068,4506.9,4506.8,1.6674]
[1756344424837,3.2078,4506.9,4506.8,1.6674]
[1756344425034,3.2078,4507.5,4507.4,1.6674]
[1756344425238,23.7278,4507.5,4507.4,1.243]
[1756344425544,23.7278,4507.5,4507.4,0.2826]
[1756344426235,3.2078,4507.5,4507.4,1.243]
[1756344426539,3.2078,4507.5,4507.4,2.73251477]
[1756344426736,23.7278,4507.5,4507.4,2.73251477]
[1756344426934,23.7278,4507.5,4507.4,43.53251477]
[1756344427534,20.52,4507.5,4507.4,43.53251477]
[1756344428541,35.1858,4508.0,4507.9,1.6674]
[1756344428744,55.7058,4508.0,4507.9,1.6674]
[1756344428944,52.498,4508.0,4507.9,1.6674]
[1756344430336,52.497,4508.0,4507.9,1.6674]
[1756344431742,3.2078,4508.5,4508.4,1.6674]
[1756344431942,6.5528,4508.5,4508.4,1.6674]
[1756344432142,6.5528,4508.5,4508.4,1.243]
[1756344432343,6.5528,4508.5,4508.4,0.2826]
[1756344432540,6.5528,4508.5,4507.8,1.95091477]
[1756344432741,7.61791477,4508.5,4507.9,0.2826]
[1756344433046,0.52345509,4508.4,4507.6,0.2826]
[1756344433342,3.2078,4508.0,4507.1,0.2666]
[1756344433542,14.26484863,4507.9,4506.9,0.2826]
[1756344433849,3.2078,4507.5,4506.4,2.02551477]
[1756344434042,17.822,4507.4,4506.5,0.9492]
[1756344435144,3.2078,4507.0,4506.6,0.5764]
[1756344435445,20.517,4506.9,4506.6,0.2938]
[1756344435644,20.517,4506.9,4506.7,0.2938]
[1756344435850,20.517,4506.9,4506.3,0.5764]
[1756344436239,20.517,4506.9,4506.4,0.2826]
[1756344436440,20.517,4506.8,4506.0,0.2826]
[1756344436936,20.517,4506.7,4506.6,0.6666]
[1756344437139,20.517,4506.7,4506.6,1.243]
[1756344437748,20.517,4506.7,4506.3,0.2938]
[1756344437941,20.517,4506.7,4506.6,0.2826]
[1756344439852,20.518,4506.7,4506.6,0.9764]
[1756344440149,3.2078,4507.0,4506.9,1.243]
[1756344440345,23.7258,4507.0,4506.3,0.8858]
[1756344440548,23.7258,4507.0,4506.4,1.243]
[1756344440745,20.518,4506.9,4506.6,0.5764]
[1756344441051,20.518,4506.9,4506.7,0.5764]
[1756344441245,20.518,4506.9,4506.8,0.2826]
[1756344442444,20.518,4506.9,4506.7,0.2826]
[1756344442850,20.518,4506.9,4506.2,1.243]
[1756344443050,20.518,4506.9,4506.2,0.9604]
[1756344443252,20.518,4506.9,4506.3,0.9492]
[1756344443852,20.518,4506.9,4506.4,0.2826]
[1756344444054,20.518,4506.9,4506.5,0.2938]
[1756344444249,20.518,4506.9,4506.6,0.2826]
[1756344444647,20.518,4506.9,4506.2,0.2826]
[1756344445248,3.2078,4506.4,4505.5,0.2826]
[1756344445444,20.518,4506.3,4505.5,1.243]
[1756344445756,20.518,4506.3,4505.5,0.2938]
[1756344445757,3.2078,4505.8,4505.5,0.2938]
[1756344445956,3.2078,4505.8,4505.6,0.4]
[1756344446256,20.518,4505.7,4505.6,1.091]
[1756344446643,20.518,4505.7,4505.6,1.6674]
[1756344447855,3.2078,4506.8,4506.4,1.6674]
[1756344448056,20.519,4506.7,4506.5,0.5764]
[1756344448257,20.519,4506.7,4506.6,0.2826]
[1756344448753,3.2078,4506.8,4506.6,0.2826]
[1756344448954,9.285,4506.7,4505.2,3.2078]
[1756344449152,3.2078,4506.2,4505.4,1.243]
[1756344449657,3.597,4506.1,4505.6,0.4244]
[1756344449845,3.597,4506.1,4505.8,1.091]
[1756344450151,3.2078,4506.2,4506.0,0.5764]
[1756344450454,9.989,4506.1,4506.0,1.6674]
[1756344450951,17.556,4506.3,4506.0,1.091]
[1756344451150,17.556,4506.3,4506.2,0.6666]
[1756344451347,17.556,4506.3,4506.2,1.6674]
[1756344452456,3.2078,4507.0,4506.7,1.4874]
[1756344452457,20.519,4506.8,4506.7,1.4874]
[1756344452653,20.519,4506.8,4506.7,1.677]
[1756344453451,3.2078,4507.0,4506.9,1.677]
[1756344453657,23.7268,4507.0,4506.9,1.677]
[1756344454159,3.2078,4507.0,4506.9,1.677]
[1756344454553,3.2078,4507.0,4506.9,1.245]
[1756344454855,3.2078,4507.0,4506.9,0.9788]
[1756344456159,3.2078,4507.0,4506.9,0.7892]
[1756344456160,23.7268,4507.0,4506.9,0.7892]
[1756344456353,23.7268,4507.0,4506.9,0.285]
[1756344458662,23.7258,4507.0,4506.9,1.677]
[1756344459757,20.518,4507.0,4506.9,1.677]
[1756344460157,20.517,4507.0,4506.9,1.392]
[1756344460764,20.517,4507.0,4506.9,1.677]
[1756344461167,20.517,4507.0,4506.9,0.285]
[1756344463460,25.26398616,4507.0,4505.7,0.285]
[1756344463663,25.26398616,4507.0,4505.6,3.5133]
[1756344463664,3.2078,4506.5,4505.6,3.4928]
[1756344463853,20.516,4506.4,4505.6,3.4928]
[1756344464165,20.73792,4506.4,4505.6,3.4928]
[1756344464354,20.516,4506.4,4505.6,3.4928]
[1756344464557,0.22193001,4506.3,4505.6,0.285]
[1756344464967,21.57960414,4506.4,4505.6,0.285]
[1756344465157,0.22193001,4506.3,4505.6,0.285]
[1756344465358,20.73793001,4506.4,4505.6,0.285]
[1756344466163,20.517,4506.3,4505.6,0.285]
[1756344467660,3.2078,4505.8,4505.6,0.285]
[1756344467860,20.517,4505.7,4505.6,0.285]
[1756344468761,3.2078,4505.8,4505.6,0.6545]
[1756344468968,3.2078,4505.8,4505.7,1.677]
[1756344469164,6.8028,4505.8,4505.7,1.677]
[1756344469664,3.10458292,4507.5,4505.1,3.2078]
[1756344469665,3.2078,4506.3,4505.9,0.8203]
[1756344469869,3.2078,4506.3,4506.1,0.5905]
[1756344470170,9.24,4506.2,4506.1,1.677]
[1756344470767,18.011,4506.2,4506.1,1.677]
[1756344471157,18.011,4506.2,4506.1,0.7892]
[1756344471362,18.011,4506.2,4505.5,0.285]
[1756344471563,18.011,4506.2,4505.5,0.9395]
[1756344471766,20.517,4506.1,4505.7,0.285]
[1756344472068,20.517,4506.1,4505.4,1.0865]
[1756344472257,20.517,4506.1,4505.5,1.245]
[1756344472463,20.518,4506.0,4505.6,0.6545]
[1756344472771,20.518,4506.0,4505.7,0.6545]
[1756344472969,20.518,4506.0,4505.9,0.285]
[1756344473466,20.518,4506.0,4505.3,0.285]
[1756344473670,3.2078,4505.8,4505.0,0.7801]
[1756344473866,3.2078,4505.8,4505.0,1.245]
[1756344474565,3.42976,4505.8,4505.0,0.285]
[1756344475173,3.2078,4505.8,4505.0,0.285]
[1756344475371,0.22196,4505.7,4505.0,0.285]
[1756344475759,3.2078,4505.8,4505.0,0.285]
[1756344475969,0.22196,4505.7,4505.0,0.285]
[1756344476171,3.2078,4505.3,4505.0,0.285]
[1756344476368,3.2078,4505.3,4504.7,0.3055]
[1756344476369,20.518,4505.2,4504.7,0.3055]
[1756344477067,20.518,4505.2,4504.8,0.285]
[1756344477269,3.2078,4505.3,4504.6,3.5961]
[1756344477573,20.519,4505.1,4504.9,0.285]
[1756344479379,20.519,4505.1,4504.8,0.3055]
[1756344479675,20.519,4505.1,4504.9,0.285]
[1756344480072,20.519,4505.1,4505.0,0.285]
[1756344480274,20.519,4505.1,4505.0,0.5905]
[1756344480576,20.519,4505.1,4501.9,12.67683041]
[1756344480577,20.519,4505.1,4504.7,0.285]
[1756344481570,20.519,4505.1,4504.4,0.3055]
[1756344481770,3.2078,4504.6,4503.9,0.6012]
[1756344482069,20.519,4504.5,4503.9,0.3011]
[1756344482375,20.519,4504.5,4503.6,3.2078]
[1756344482675,3.2078,4504.1,4503.7,0.3011]
[1756344482871,23.7278,4504.0,4503.7,0.3011]
[1756344483168,23.7278,4504.0,4503.5,0.9585]
[1756344483368,23.7278,4504.0,4503.7,0.6012]
[1756344483564,23.7278,4504.0,4503.8,0.3011]
[1756344483768,23.7278,4504.0,4503.3,0.6991]
[1756344483969,23.7278,4504.0,4503.5,0.6574]
[1756344484169,23.7278,4504.0,4503.7,0.6012]
[1756344484374,23.7278,4504.0,4503.7,0.3001]
[1756344484576,23.7278,4504.0,4503.8,0.3011]
[1756344484775,23.7278,4504.0,4503.7,0.3001]
[1756344485165,23.7278,4504.0,4503.9,0.3011]
[1756344485370,3.2078,4504.0,4503.9,0.6012]
[1756344485577,23.7288,4504.0,4503.9,0.6012]
[1756344486572,23.7288,4504.0,4503.9,0.9927]
[1756344486773,23.7288,4504.0,4503.9,1.2586]
[1756344487581,23.7298,4504.0,4503.9,1.2586]
[1756344487780,23.7298,4504.0,4503.9,1.6576]
[1756344488075,23.7298,4504.0,4503.9,1.2586]
[1756344489679,23.7298,4504.0,4503.6,0.3011]
[1756344489878,23.7298,4504.0,4503.3,0.5931]
[1756344490179,23.7298,4504.0,4503.4,0.9575]
[1756344490376,23.7298,4504.0,4503.5,0.3011]
[1756344490678,23.7298,4504.0,4503.4,0.3011]
[1756344490887,23.7298,4504.0,4503.4,1.2586]
[1756344491088,23.7298,4504.0,4503.4,0.3011]
[1756344491582,20.523,4503.9,4503.1,3.2078]
[1756344492286,20.523,4503.9,4503.1,3.8652]
[1756344492484,20.523,4503.9,4503.2,0.3011]
[1756344492682,20.523,4503.9,4503.2,0.4952]
[1756344493489,3.2078,4504.0,4503.2,0.3011]
[1756344493691,3.2078,4503.5,4503.0,0.3001]
[1756344493887,3.2078,4503.5,4502.9,0.1941]
[1756344494084,20.523,4503.4,4503.1,1.0564]
[1756344494284,20.523,4503.4,4503.3,0.6012]
[1756344495288,20.523,4503.4,4503.3,0.3011]
[1756344496084,20.523,4503.4,4503.3,1.2586]
[1756344497494,31.979,4504.4,4503.4,0.6574]
[1756344497495,3.2078,4504.0,4503.4,0.6574]
[1756344497685,20.523,4503.9,4503.8,0.1974]
[1756344497892,20.523,4503.9,4503.8,0.9927]
[1756344498082,20.523,4503.9,4503.8,0.7986]
[1756344498290,20.523,4503.9,4503.8,0.3011]
[1756344498497,3.2078,4504.0,4503.9,0.6012]
[1756344498695,23.7308,4504.0,4503.9,0.6012]
[1756344499299,3.2078,4504.0,4503.9,1.2586]
[1756344499498,23.7318,4504.0,4503.9,1.6576]
[1756344500498,23.7318,4504.0,4503.9,1.2586]
[1756344500698,23.7318,4504.0,4503.9,0.9927]
[1756344501694,23.7318,4504.0,4503.9,1.6576]
[1756344502495,23.7318,4504.0,4503.9,0.6012]
[1756344502691,23.7318,4504.0,4503.9,0.9927]
[1756344503292,3.2078,4504.0,4503.9,0.9927]
[1756344503494,23.7298,4504.0,4503.9,1.2586]
[1756344503798,23.7298,4504.0,4503.9,1.6576]
[1756344504591,23.7298,4504.0,4503.2,0.3011]
[1756344504793,23.7298,4504.0,4503.2,0.9585]
[1756344504998,23.7298,4504.0,4503.2,0.6574]
[1756344505197,3.2078,4504.0,4503.3,0.6926]
[1756344505398,20.522,4503.9,4503.3,0.6926]
[1756344505598,20.522,4503.9,4503.4,0.6574]
[1756344505791,3.2078,4504.0,4503.5,0.1941]
[1756344505792,20.521,4503.8,4503.5,0.1941]
[1756344505990,20.521,4503.8,4503.4,1.2586]
[1756344506299,20.521,4503.8,4503.5,0.399]
[1756344506502,20.521,4503.8,4503.7,0.3011]
[1756344506800,3.2078,4504.0,4503.8,1.2586]
[1756344507003,20.521,4503.9,4503.8,1.2586]
[1756344507603,20.521,4503.9,4503.8,0.3011]
[1756344508502,20.521,4503.9,4503.5,0.3001]
[1756344508691,20.521,4503.9,4503.6,0.3011]
[1756344508896,20.521,4503.9,4503.5,0.3001]
[1756344509697,20.521,4503.9,4503.5,0.399]
[1756344509898,20.521,4503.9,4503.7,0.3001]
[1756344510105,20.521,4503.9,4503.8,0.6012]
[1756344510901,20.521,4503.9,4503.1,0.7953]
[1756344511103,20.521,4503.9,4503.1,0.6012]
[1756344511404,1.06516117,4503.2,4502.4,0.6012]
[1756344511603,14.20308478,4503.1,4502.6,0.6617]
[1756344511901,14.20308478,4503.0,4502.8,0.5638]
[1756344512096,20.519,4502.9,4502.8,0.5638]
[1756344512297,0.52629775,4502.9,4502.8,1.6507]
[1756344512496,20.52,4502.9,4502.8,1.6507]
[1756344513295,3.2078,4503.8,4502.8,1.6507]
[1756344513506,9.69261893,4503.7,4503.1,0.6938]
[1756344513704,0.53161893,4503.6,4503.5,0.9521]
[1756344513912,0.53161893,4503.6,4503.0,0.2842]
[1756344514103,9.161,4503.7,4502.7,0.2796]
[1756344514104,3.2078,4503.3,4502.7,0.2796]
[1756344514311,19.189,4503.2,4502.6,0.2842]
[1756344514510,19.189,4503.2,4502.7,0.7598]
[1756344514708,3.2078,4503.3,4503.2,1.16]
[1756344514903,23.7278,4503.3,4503.2,0.5638]
[1756344515211,23.7278,4503.3,4503.2,0.2842]
[1756344516109,23.7278,4503.3,4503.2,0.5638]
[1756344517107,3.2078,4503.3,4503.2,1.2411]
[1756344517311,12.1738,4503.3,4503.2,1.6507]
[1756344518207,12.1738,4503.3,4503.2,1.2411]
[1756344518605,12.1738,4503.3,4503.2,1.6507]
[1756344518807,3.2078,4503.8,4503.3,0.1866]
[1756344519013,18.0664768,4503.7,4503.4,0.6773]
[1756344519215,17.535,4503.7,4503.6,0.9521]
[1756344519412,17.535,4503.7,4503.6,1.2411]
[1756344519813,17.535,4503.7,4503.6,0.2842]
[1756344520113,3.2078,4503.8,4503.7,0.5638]
[1756344520408,24.25831151,4503.8,4503.7,0.2842]
[1756344520612,24.25831151,4503.8,4503.4,0.2842]
[1756344520805,23.7268,4503.8,4503.4,0.2842]
[1756344522406,23.7268,4503.8,4503.1,0.2842]
[1756344523414,1.06516117,4503.2,4502.3,3.7716]
[1756344523610,3.2078,4502.8,4502.3,0.2796]
[1756344523805,13.693,4502.7,4502.1,0.2842]
[1756344524712,13.693,4502.7,4502.1,0.4708]
[1756344525212,13.693,4502.7,4502.1,0.6725]
[1756344525912,13.693,4502.7,4502.1,0.2842]
[1756344526112,3.2078,4502.3,4502.1,0.2842]
[1756344526314,3.2078,4502.3,4501.9,0.2842]
[1756344526505,3.2078,4502.3,4501.8,0.00190561]
[1756344526709,3.2078,4502.3,4502.0,0.2842]
[1756344527510,3.2078,4502.3,4501.8,0.28610561]
[1756344529416,3.2078,4502.3,4501.8,0.00190561]
[1756344529905,20.519,4502.2,4501.8,0.00190561]
[1756344530109,1.06516117,4502.0,4501.8,0.00190561]
[1756344531310,20.519,4501.9,4501.8,0.00190561]
[1756344533217,20.51608492,4501.9,4501.8,0.00190561]
[1756344533724,20.519,4501.9,4501.8,0.00190561]
[1756344535225,1.06516117,4502.0,4501.8,0.00190561]
[1756344535523,20.52,4501.9,4501.8,0.00190561]
[1756344537427,21.05553788,4501.9,4501.8,0.00190561]
[1756344538014,25.27766788,4501.9,4500.4,0.5638]
[1756344538323,3.2078,4501.1,4500.6,0.2842]
[1756344538618,3.2078,4501.1,4500.5,0.9569]
[1756344538619,20.52,4501.0,4500.8,0.2842]
[1756344538820,21.93282362,4501.0,4500.4,0.2796]
[1756344539028,3.2078,4500.6,4500.3,0.2842]
[1756344539223,20.52,4500.5,4500.1,0.2796]
[1756344539421,20.52,4500.5,4500.3,0.2842]
[1756344540526,3.2078,4500.6,4500.5,0.4096]
[1756344540728,23.7278,4500.6,4500.5,1.6507]
[1756344543327,23.7298,4500.6,4500.5,1.6507]
[1756344543830,23.7298,4500.6,4500.5,0.2842]
[1756344544330,23.71928261,4500.6,4500.5,0.2842]
[1756344544521,23.71928261,4500.6,4500.5,0.5924]
[1756344546932,31.998,4501.0,4500.9,0.6706]
[1756344547132,52.52,4501.0,4500.9,1.6863]
[1756344549021,31.998,4501.0,4500.9,1.6863]
[1756344549422,52.52,4501.0,4500.9,1.6863]
[1756344551828,52.52,4501.0,4500.9,0.5941]
[1756344552229,52.52,4501.0,4500.9,0.2859]
[1756344552430,52.52,4501.0,4500.9,0.7838]
[1756344552630,52.52,4501.0,4500.9,0.9773]
[1756344553333,52.52,4501.0,4500.9,0.2859]
[1756344554131,55.7278,4501.0,4500.9,0.2859]
[1756344556744,55.7278,4501.0,4500.6,0.5941]
[1756344557135,55.7278,4501.0,4500.7,0.2859]
[1756344557336,55.7278,4501.0,4499.7,1.0157]
[1756344557532,1.41282362,4500.7,4499.8,1.0157]
[1756344557840,3.2078,4500.4,4500.0,0.5941]
[1756344558043,20.52,4500.3,4499.7,0.5941]
[1756344558242,20.52,4500.3,4499.7,0.7838]
[1756344558435,20.52,4500.3,4499.7,0.9788]
[1756344558642,20.52,4500.3,4499.8,0.2859]
[1756344558831,20.52,4500.3,4499.7,0.2859]
[1756344560336,20.52,4500.3,4499.9,1.0157]
[1756344560541,20.519,4500.2,4500.1,0.5941]
[1756344561041,20.519,4500.2,4500.1,0.7838]
[1756344561241,20.519,4500.2,4500.1,0.9773]
[1756344561442,3.2078,4500.4,4500.2,0.3082]
[1756344561634,20.519,4500.3,4500.2,0.5941]
[1756344561833,20.519,4500.3,4499.8,0.2859]
[1756344562032,20.519,4500.3,4499.7,0.3082]
[1756344562238,20.519,4500.3,4499.7,0.7838]
[1756344562438,20.519,4500.3,4499.7,0.9773]
[1756344562736,20.519,4500.3,4499.8,0.2859]
[1756344562939,20.519,4500.3,4499.6,1.075]
[1756344563236,20.519,4500.3,4499.9,1.6863]
[1756344563444,3.2078,4500.4,4500.1,0.9788]
[1756344563740,3.2078,4500.4,4500.3,1.0157]
[1756344563943,23.7268,4500.4,4500.3,1.6863]
[1756344566341,31.998,4501.0,4500.9,0.6706]
[1756344566648,52.516,4501.0,4500.9,1.6863]
[1756344566844,52.516,4501.0,4500.9,1.2647]
[1756344567148,52.516,4501.0,4500.9,0.9773]
[1756344567348,52.516,4501.0,4500.9,1.6863]
[1756344569948,31.998,4501.0,4500.9,1.6863]
[1756344570349,52.514,4501.0,4500.9,1.6863]
[1756344570548,52.514,4501.0,4500.9,0.7876]
[1756344570945,52.514,4501.0,4500.9,0.5941]
[1756344571650,52.514,4501.0,4500.6,0.2859]
[1756344571841,3.2078,4500.9,4500.6,0.2859]
[1756344572053,20.515,4500.8,4500.5,0.3082]
[1756344572350,20.515,4500.8,4500.6,0.3017]
[1756344572546,20.515,4500.8,4500.5,0.3082]
[1756344572846,20.515,4500.8,4500.6,0.3017]
[1756344573149,20.515,4500.8,4500.7,0.3017]
[1756344573744,20.515,4500.8,4500.3,1.1018]
[1756344574051,20.515,4500.8,4500.5,1.6864]
[1756344574253,20.515,4500.8,4500.5,1.1018]
[1756344574550,20.515,4500.8,4500.7,0.5846]
[1756344576248,3.2078,4500.9,4500.7,0.5846]
[1756344576450,3.2078,4500.9,4500.8,1.6864]
[1756344576751,3.2078,4502.1,4500.9,1.0111]
[1756344577052,35.2148,4502.7,4502.1,0.4265]
[1756344577253,35.2148,4502.7,4502.5,0.977]
[1756344577254,20.513,4502.6,4502.5,0.977]
[1756344577454,20.513,4502.6,4502.5,1.2599]
[1756344577644,20.513,4502.6,4502.5,1.6864]
[1756344578352,20.512,4502.6,4502.5,0.9582]
[1756344578553,20.512,4502.6,4502.5,0.2829]
[1756344578950,24.512,4502.6,4501.9,0.5846]
[1756344579153,1.41282362,4502.5,4501.9,0.3017]
[1756344579354,20.511,4502.4,4501.9,0.3017]
[1756344579549,20.511,4502.4,4501.6,0.2829]
[1756344579748,1.41282362,4502.5,4501.7,0.5078]
[1756344579950,20.51,4502.4,4502.0,1.6864]
[1756344580151,20.51,4502.3,4502.1,0.5846]
[1756344580355,20.51,4502.3,4502.2,0.3017]
[1756344580959,20.509,4502.3,4502.2,1.6864]
[1756344582153,20.509,4502.3,4502.2,1.2599]
[1756344582749,35.2148,4502.7,4501.8,0.39979]
[1756344582953,35.2148,4502.7,4502.6,1.6864]
[1756344583256,55.7228,4502.7,4502.6,0.5846]
[1756344583958,55.7228,4502.7,4502.0,1.2599]
[1756344584457,55.7228,4502.7,4502.0,0.9842]
[1756344584853,20.507,4502.6,4502.0,0.2757]
[1756344585048,20.507,4502.6,4502.3,0.5846]
[1756344585253,35.2148,4502.7,4502.5,1.6864]
[1756344585462,32.007,4502.7,4502.6,1.6864]
[1756344585759,52.513,4502.7,4502.6,1.6864]
[1756344585951,3.2078,4503.2,4503.1,1.4035]
[1756344586146,3.2078,4503.2,4503.1,1.6864]
[1756344586350,8.886,4503.2,4503.1,1.3847]
[1756344586552,3.2078,4504.4,4503.7,1.6864]
[1756344586756,3.188,4504.3,4503.9,0.2757]
[1756344587059,3.188,4504.3,4503.4,3.6343]
[1756344587258,3.188,4504.3,4503.6,0.6326]
[1756344587450,3.188,4504.3,4503.7,0.7647]
[1756344587651,3.188,4504.3,4503.8,0.1935]
[1756344587861,3.188,4504.3,4503.9,0.5846]
[1756344588157,12.976,4504.2,4504.1,1.6864]
[1756344588359,12.976,4504.2,4504.1,1.2599]
[1756344588560,20.503,4504.2,4504.1,0.9582]
[1756344588758,20.503,4504.2,4504.1,1.2599]
[1756344589553,3.2078,4504.4,4504.2,0.3017]
[1756344589753,20.502,4504.3,4503.8,0.3017]
[1756344590059,20.502,4504.2,4503.8,0.5846]
[1756344590362,20.502,4504.2,4503.9,0.3017]
[1756344590551,20.501,4504.1,4503.7,1.0111]
[1756344590753,20.501,4504.1,4503.8,0.6825]
[1756344590952,20.501,4504.1,4504.0,0.5846]
[1756344591158,20.501,4504.1,4504.0,0.7907]
[1756344591360,3.2078,4504.4,4504.1,1.0111]
[1756344591561,20.5,4504.3,4504.2,0.5846]
[1756344591759,3.2078,4504.4,4504.3,1.2599]
[1756344591959,23.7078,4504.4,4503.8,0.2829]
[1756344592166,23.7078,4504.4,4503.9,0.3017]
[1756344592359,23.7078,4504.4,4503.8,0.2829]
[1756344592657,23.7078,4504.4,4503.8,0.2061]
[1756344592866,23.7078,4504.4,4503.7,0.6753]
[1756344593163,23.7078,4504.4,4503.8,0.9842]
[1756344593661,23.7078,4504.4,4503.8,0.5846]
[1756344593962,23.7078,4504.4,4503.8,0.3017]
[1756344594256,3.2078,4503.9,4503.6,0.5846]
[1756344594461,3.2078,4503.9,4503.8,1.6864]
[1756344594657,23.7058,4503.9,4503.8,1.6864]
[1756344594965,23.7058,4503.9,4502.9,1.0111]
[1756344595157,23.7058,4503.9,4502.8,3.2078]
[1756344595358,3.2078,4503.9,4502.8,3.2078]
[1756344595552,20.497,4503.8,4503.7,0.9842]
[1756344595763,20.497,4503.8,4503.7,0.3017]
[1756344596763,20.497,4503.8,4503.7,0.5846]
[1756344597967,20.497,4503.8,4502.9,1.2599]
[1756344598163,20.497,4503.8,4503.0,0.3017]
[1756344598460,3.2078,4503.4,4503.0,0.3017]
[1756344598667,20.495,4503.3,4502.9,0.2829]
[1756344598855,20.495,4503.3,4503.0,0.2829]
[1756344599054,20.495,4503.3,4503.1,0.3017]
[1756344599255,20.495,4503.3,4502.4,1.0111]
[1756344599460,3.2078,4502.9,4502.0,0.5846]
[1756344599759,20.495,4502.8,4502.1,0.7781]